bitfinex/quotes_SOLUSD_20250403
["timestamp","ask_amount","ask_price","bid_price","bid_amount"]
[1743718745019,19.07613357,116.92,116.9,8.5543]
[1743718745224,0.28432314,116.9,116.89,8.5547]
[1743718746737,0.28432314,116.9,116.88,8.5557]
[1743718747719,0.14216157,116.89,116.88,8.5557]
[1743718748128,0.14216157,116.89,116.87,8.5563]
[1743718748636,51.65432314,116.88,116.87,8.5563]
[1743718749541,0.28432314,116.88,116.87,8.5563]
[1743718750245,0.28432314,116.88,116.86,8.5572]
[1743718750553,18.933972,116.88,116.86,8.5572]
[1743718750718,0.28432314,116.86,116.83,34.51955388]
[1743718751119,0.14216157,116.85,116.83,34.51955388]
[1743718752540,0.14216157,116.81,116.8,8.5616]
[1743718752741,70.44613357,116.81,116.76,21.4109]
[1743718752945,96.40628745,116.81,116.77,25.96015388]
[1743718753142,116.40628745,116.81,116.76,34.52465388]
[1743718753326,0.28432314,116.78,116.76,8.5645]
[1743718753648,51.51216157,116.79,116.76,8.5645]
[1743718753853,51.51216157,116.79,116.78,25.96015388]
[1743718754347,0.14216157,116.79,116.78,25.96015388]
[1743718754833,0.14216157,116.79,116.78,34.52325388]
[1743718756752,136.0,116.84,116.78,55.93095388]
[1743718756958,18.79181043,116.84,116.81,25.96015388]
[1743718757124,0.14216157,116.84,116.81,25.96015388]
[1743718757324,19.07613357,116.84,116.8,25.96015388]
[1743718758447,19.07613357,116.84,116.81,25.96015388]
[1743718758630,19.07613357,116.84,116.82,25.96015388]
[1743718758631,0.14216157,116.84,116.82,25.96015388]
[1743718758950,0.28432314,116.83,116.79,25.96015388]
[1743718759451,0.28432314,116.83,116.8,25.96015388]
[1743718760147,0.28432314,116.83,116.81,8.5609]
[1743718764237,0.28432314,116.83,116.81,34.52105388]
[1743718764635,51.51216157,116.84,116.82,25.96015388]
[1743718766149,51.79648471,116.84,116.83,8.5594]
[1743718767553,0.14216157,116.84,116.83,34.51955388]
[1743718770668,51.37,116.85,116.83,34.51955388]
[1743718772785,0.42648471,116.84,116.83,8.5594]
[1743718772956,0.14216157,116.84,116.83,8.5594]
[1743718773293,51.37,116.85,116.83,34.51955388]
[1743718773487,70.44613357,116.84,116.8,21.4031]
[1743718773777,70.16181043,116.82,116.81,8.5609]
[1743718773962,77.80181043,116.82,116.81,8.5609]
[1743718774878,0.28432314,116.81,116.8,8.5616]
[1743718775756,51.79648471,116.81,116.8,8.5616]
[1743718778883,7.64,116.82,116.8,8.5616]
[1743718779056,7.64,116.82,116.8,34.52175388]
[1743718780813,0.14216157,116.85,116.81,25.96015388]
[1743718780972,0.14216157,116.85,116.83,25.96015388]
[1743718781475,0.42648471,116.85,116.83,25.96015388]
[1743718782077,0.42648471,116.85,116.84,8.5587]
[1743718782285,0.14216157,116.85,116.84,8.5587]
[1743718784589,70.44613357,116.85,116.83,8.559]
[1743718784989,78.08613357,116.85,116.83,8.559]
[1743718785793,104.04628745,116.85,116.81,8.5609]
[1743718785996,0.28432314,116.82,116.79,8.5623]
[1743718786378,0.14216157,116.8,116.79,8.5623]
[1743718787497,0.42648471,116.8,116.79,8.5623]
[1743718788285,7.64,116.81,116.79,34.52245388]
[1743718788483,7.78216157,116.81,116.8,25.96015388]
[1743718789502,7.78216157,116.81,116.79,34.52245388]
[1743718791099,0.14216157,116.8,116.79,8.5623]
[1743718792602,0.14216157,116.8,116.79,34.52245388]
[1743718793399,7.64,116.81,116.79,34.52245388]
[1743718793707,7.78216157,116.81,116.79,34.52245388]
[1743718794410,0.14216157,116.8,116.79,34.52245388]
[1743718795503,59.01,116.81,116.79,34.52245388]
[1743718796314,0.14216157,116.82,116.79,55.92835388]
[1743718796608,0.14216157,116.82,116.8,25.96015388]
[1743718796910,0.14216157,116.82,116.79,25.96015388]
[1743718797586,0.14216157,116.8,116.78,25.96015388]
[1743718798606,0.14216157,116.78,116.77,29.9734]
[1743718798805,0.14216157,116.78,116.77,8.5638]
[1743718799191,0.14216157,116.78,116.77,34.52395388]
[1743718805715,0.14216157,116.78,116.77,8.5638]
[1743718806414,51.37,116.81,116.77,34.52395388]
[1743718806607,51.37,116.81,116.79,25.96015388]
[1743718806812,51.37,116.81,116.8,8.5616]
[1743718807007,51.65432314,116.81,116.8,8.5616]
[1743718808515,51.79648471,116.81,116.8,8.5616]
[1743718808813,0.14216157,116.8,116.79,8.5623]
[1743718809005,0.42648471,116.8,116.79,8.5623]
[1743718813027,0.42648471,116.8,116.75,72.8036]
[1743718813225,0.42648471,116.8,116.78,16.64324689]
[1743718815840,19.07613357,116.8,116.75,72.8036]
[1743718816131,0.42648471,116.77,116.75,29.9785]
[1743718820243,0.42648471,116.77,116.75,26.02175932]
[1743718820746,79.01,116.78,116.76,26.02175932]
[1743718820747,7.64,116.78,116.76,26.02175932]
[1743718820912,0.14216157,116.79,116.77,26.02175932]
[1743718821112,0.14216157,116.78,116.77,26.02175932]
[1743718821312,0.14216157,116.78,116.76,26.02175932]
[1743718822538,90.16181043,116.78,116.77,8.5638]
[1743718822719,0.42648471,116.78,116.77,8.5638]
[1743718823121,0.14216157,116.79,116.77,55.99515932]
[1743718825541,59.43648471,116.8,116.78,26.02175932]
[1743718825928,51.79648471,116.8,116.77,29.9734]
[1743718826131,51.79648471,116.8,116.77,55.99515932]
[1743718829229,51.65432314,116.78,116.77,8.5638]
[1743718830142,0.14216157,116.78,116.77,34.58555932]
[1743718830350,59.01,116.8,116.77,55.99515932]
[1743718830538,59.01,116.8,116.78,26.02175932]
[1743718831747,59.15216157,116.8,116.79,8.5623]
[1743718834051,59.15216157,116.8,116.79,34.58405932]
[1743718835250,59.15216157,116.8,116.79,8.5623]
[1743718835452,59.15216157,116.8,116.79,34.58405932]
[1743718835751,59.15216157,116.8,116.79,8.5623]
[1743718835953,59.15216157,116.8,116.79,34.58405932]
[1743718836249,0.14216157,116.81,116.79,55.98995932]
[1743718836430,0.14216157,116.81,116.8,26.02175932]
[1743718837548,51.37,116.83,116.8,26.02175932]
[1743718837755,0.14216157,116.82,116.79,72.78]
[1743718838054,0.14216157,116.82,116.81,16.63421213]
[1743718838253,0.14216157,116.82,116.81,25.19511213]
[1743718839258,51.37,116.83,116.81,25.19511213]
[1743718839457,0.14216157,116.83,116.82,16.63421213]
[1743718839753,51.37,116.84,116.82,16.63421213]
[1743718839955,51.51216157,116.84,116.83,16.63421213]
[1743718840334,51.51216157,116.84,116.83,25.19361213]
[1743718840534,0.14216157,116.84,116.83,25.19361213]
[1743718841651,51.65432314,116.86,116.83,25.19361213]
[1743718841857,0.14216157,116.85,116.84,16.63421213]
[1743718842232,51.37,116.86,116.84,16.63421213]
[1743718842449,0.14216157,116.86,116.85,16.63421213]
[1743718843551,0.14216157,116.87,116.85,16.63421213]
[1743718843958,0.14216157,116.87,116.86,16.63421213]
[1743718844358,51.65432314,116.89,116.86,25.19141213]
[1743718844562,51.37,116.89,116.88,16.63421213]
[1743718844767,0.14216157,116.9,116.88,16.63421213]
[1743718844960,0.14216157,116.9,116.89,16.63421213]
[1743718845266,51.37,116.91,116.89,16.63421213]
[1743718845475,51.51216157,116.91,116.9,16.63421213]
[1743718845650,0.14216157,116.91,116.9,16.63421213]
[1743718846263,0.14216157,116.9,116.89,16.63421213]
[1743718846567,51.37,116.91,116.89,25.18921213]
[1743718846741,51.51216157,116.91,116.9,16.63421213]
[1743718847560,0.14216157,116.91,116.9,16.63421213]
[1743718847737,0.14216157,116.93,116.9,16.63421213]
[1743718847937,0.14216157,116.93,116.92,16.63421213]
[1743718848759,0.14216157,116.93,116.92,25.18701213]
[1743718849140,51.37,116.94,116.92,25.18701213]
[1743718849465,0.14216157,116.94,116.92,25.18701213]
[1743718850146,0.42648471,116.95,116.93,16.63421213]
[1743718850669,0.42648471,116.95,116.92,46.56911213]
[1743718851253,0.28432314,116.92,116.88,16.63421213]
[1743718851478,7.64,116.91,116.88,16.63421213]
[1743718851849,7.64,116.91,116.89,16.63421213]
[1743718852449,8.06648471,116.91,116.89,16.63421213]
[1743718852657,0.42648471,116.9,116.87,16.63421213]
[1743718852856,87.0803457,116.9,116.84,29.9554]
[1743718853057,0.28432314,116.88,116.84,29.9554]
[1743718853366,7.64,116.87,116.85,16.63421213]
[1743718853758,7.64,116.87,116.85,25.97534053]
[1743718854071,7.64,116.87,116.85,34.53254053]
[1743718855483,7.64,116.87,116.85,8.5572]
[1743718855655,7.64,116.87,116.85,34.53254053]
[1743718861077,0.14216157,116.86,116.85,8.5572]
[1743718862996,0.42648471,116.86,116.81,21.4019]
[1743718863157,106.4856741,116.86,116.82,34.53544053]
[1743718863556,106.4856741,116.86,116.82,8.5601]
[1743718863982,0.28432314,116.83,116.81,8.5606]
[1743718864172,0.14216157,116.82,116.81,8.5606]
[1743718864480,0.14216157,116.82,116.78,8.5631]
[1743718864680,0.28432314,116.81,116.78,25.97534053]
[1743718865155,0.28432314,116.81,116.77,34.53914053]
[1743718865356,77.62966367,116.81,116.77,34.53914053]
[1743718865771,0.28432314,116.79,116.77,8.5638]
[1743718865997,0.14216157,116.77,116.75,8.5653]
[1743718866156,0.14216157,116.77,116.75,34.54064053]
[1743718866977,0.42648471,116.77,116.75,34.54064053]
[1743718868085,0.42648471,116.77,116.75,8.5653]
[1743718870298,19.07613357,116.77,116.75,8.5653]
[1743718871985,19.07613357,116.75,116.73,8.5667]
[1743718872189,0.28432314,116.73,116.71,25.97534053]
[1743718872990,0.28432314,116.73,116.72,8.5675]
[1743718873286,7.64,116.74,116.72,34.54284053]
[1743718873471,7.78216157,116.74,116.73,25.97534053]
[1743718873786,0.14216157,116.73,116.72,34.54284053]
[1743718874891,0.14216157,116.76,116.72,55.96154053]
[1743718875066,0.42648471,116.76,116.75,25.97534053]
[1743718875266,0.42648471,116.76,116.74,25.97534053]
[1743718876378,39.07613357,116.76,116.72,55.96154053]
[1743718876778,39.07613357,116.76,116.73,25.97534053]
[1743718877179,0.14216157,116.76,116.75,25.97534053]
[1743718877383,20.0,116.77,116.75,25.97534053]
[1743718877684,19.07613357,116.76,116.74,55.95644053]
[1743718877879,7.64,116.78,116.74,55.95644053]
[1743718878073,0.14216157,116.77,116.74,29.9811]
[1743718878267,0.14216157,116.77,116.76,25.97534053]
[1743718879589,0.14216157,116.77,116.76,34.53984053]
[1743718880791,0.14216157,116.77,116.75,25.97534053]
[1743718881196,0.14216157,116.77,116.76,25.97534053]
[1743718882293,0.42648471,116.78,116.76,25.97534053]
[1743718882785,0.42648471,116.78,116.77,8.5638]
[1743718884894,0.14216157,116.78,116.77,34.53914053]
[1743718885590,71.37,116.82,116.77,34.53914053]
[1743718885906,20.0,116.84,116.81,16.63708299]
[1743718886092,7.64,116.84,116.83,16.63708299]
[1743718886483,7.92432314,116.84,116.83,16.63708299]
[1743718886676,40.28754886,116.86,116.83,16.63708299]
[1743718886884,40.571872,116.86,116.85,8.5579]
[1743718887083,7.64,116.87,116.85,8.5579]
[1743718887279,20.0,116.88,116.85,25.19498299]
[1743718887485,0.14216157,116.87,116.86,16.63708299]
[1743718887685,0.42648471,116.87,116.86,25.97276102]
[1743718887994,0.14216157,116.87,116.86,25.97276102]
[1743718888194,71.37,116.88,116.86,25.97276102]
[1743718888575,0.14216157,116.89,116.87,25.97276102]
[1743718888896,0.14216157,116.89,116.88,25.97276102]
[1743718889097,0.42648471,116.89,116.88,34.52846102]
[1743718889473,27.64,116.9,116.88,34.52846102]
[1743718889714,7.64,116.93,116.89,25.97276102]
[1743718889914,0.14216157,116.92,116.9,25.97276102]
[1743718890209,71.51216157,116.92,116.89,25.97276102]
[1743718890415,0.14216157,116.9,116.88,34.52846102]
[1743718890916,0.14216157,116.9,116.89,25.97276102]
[1743718891416,0.14216157,116.9,116.89,34.52776102]
[1743718892810,0.14216157,116.9,116.89,8.555]
[1743718894117,0.14216157,116.9,116.84,21.3963]
[1743718894118,0.14216157,116.88,116.84,21.3963]
[1743718894321,0.14216157,116.88,116.85,34.53066102]
[1743718894693,0.28432314,116.87,116.85,34.53066102]
[1743718894893,0.14216157,116.86,116.83,8.5594]
[1743718895199,0.14216157,116.86,116.84,25.97276102]
[1743718895617,0.14216157,116.86,116.84,34.53096102]
[1743718896789,0.42648471,116.84,116.82,25.97276102]
[1743718896993,0.14216157,116.85,116.83,25.97276102]
[1743718897689,0.14216157,116.85,116.83,34.53146102]
[1743718899315,51.51216157,116.85,116.83,34.53146102]
[1743718899517,0.28432314,116.84,116.82,8.5598]
[1743718899694,0.28432314,116.84,116.77,29.9728]
[1743718899695,0.42648471,116.81,116.77,29.9728]
[1743718899896,0.42648471,116.81,116.78,25.97276102]
[1743718900203,0.42648471,116.81,116.79,25.97276102]
[1743718901114,0.42648471,116.81,116.78,25.97276102]
[1743718901822,0.42648471,116.81,116.78,34.53516102]
[1743718902120,70.44613357,116.79,116.77,8.5634]
[1743718902610,7.64,116.8,116.78,25.97276102]
[1743718902811,0.42648471,116.79,116.77,34.53616102]
[1743718903393,27.64,116.8,116.78,25.97276102]
[1743718903599,27.64,116.8,116.77,55.94576102]
[1743718903799,0.42648471,116.79,116.77,8.5634]
[1743718904215,27.64,116.8,116.78,25.97276102]
[1743718904413,28.06648471,116.8,116.79,25.97276102]
[1743718904913,28.06648471,116.8,116.78,25.97276102]
[1743718905306,0.42648471,116.79,116.77,55.94576102]
[1743718905904,27.64,116.8,116.78,25.97276102]
[1743718906105,28.06648471,116.8,116.79,8.5623]
[1743718906306,28.06648471,116.8,116.79,34.53506102]
[1743718906510,28.06648471,116.8,116.79,8.5623]
[1743718907012,46.71613357,116.8,116.77,21.4096]
[1743718907211,0.42648471,116.79,116.78,8.5627]
[1743718909724,19.07613357,116.79,116.77,8.5635]
[1743718910634,19.07613357,116.79,116.77,34.53626102]
[1743718914226,51.79648471,116.78,116.77,34.53626102]
[1743718917325,51.79648471,116.78,116.73,29.9836]
[1743718917326,70.44613357,116.77,116.73,29.9836]
[1743718917634,70.44613357,116.77,116.74,25.97276102]
[1743718918932,70.44613357,116.75,116.73,8.5667]
[1743718919132,70.44613357,116.75,116.73,34.53946102]
[1743718922932,27.64,116.76,116.74,25.97276102]
[1743718923121,0.14216157,116.77,116.75,25.97276102]
[1743718923320,0.42648471,116.77,116.75,25.97276102]
[1743718923521,0.42648471,116.75,116.73,29.9836]
[1743718923921,70.44613357,116.75,116.73,8.5667]
[1743718925313,70.44613357,116.75,116.73,34.53946102]
[1743718925623,0.42648471,116.75,116.74,25.97276102]
[1743718926128,19.07613357,116.75,116.73,8.5667]
[1743718926443,19.07613357,116.75,116.73,34.53946102]
[1743718926743,20.0,116.74,116.73,8.5667]
[1743718926951,0.42648471,116.74,116.73,34.53946102]
[1743718927115,8.06648471,116.74,116.73,34.53946102]
[1743718927628,7.64,116.76,116.73,55.95636102]
[1743718927846,21.5479,116.8,116.75,25.97276102]
[1743718928167,20.0,116.82,116.79,25.97276102]
[1743718928453,8.06648471,116.8,116.79,25.97276102]
[1743718929240,7.78216157,116.8,116.79,25.97276102]
[1743718929437,8.06648471,116.8,116.79,34.53506102]
[1743718930937,8.06648471,116.8,116.79,8.5623]
[1743718931141,0.42648471,116.79,116.78,34.53556102]
[1743718931841,0.42648471,116.79,116.78,8.5628]
[1743718932571,0.42648471,116.79,116.78,34.53556102]
[1743718933263,0.42648471,116.79,116.77,34.53636102]
[1743718933858,38.64964886,116.78,116.77,8.5636]
[1743718934364,70.01964886,116.77,116.76,8.5642]
[1743718934567,70.01964886,116.77,116.76,34.53696102]
[1743718935070,51.37,116.79,116.76,34.53696102]
[1743718935257,51.51216157,116.79,116.78,25.97276102]
[1743718935571,51.37,116.8,116.78,25.97276102]
[1743718935776,51.79648471,116.8,116.79,25.97276102]
[1743718935949,51.51216157,116.8,116.79,25.97276102]
[1743718936349,51.79648471,116.8,116.79,25.97276102]
[1743718936568,51.51216157,116.8,116.79,25.97276102]
[1743718936758,51.79648471,116.8,116.79,34.53506102]
[1743718936964,51.37,116.84,116.79,55.94096102]
[1743718937272,51.79648471,116.84,116.83,25.97276102]
[1743718938372,0.42648471,116.83,116.82,25.97276102]
[1743718938546,51.79648471,116.82,116.81,25.97276102]
[1743718938747,51.79648471,116.82,116.81,34.53366102]
[1743718939484,70.44613357,116.82,116.81,34.53366102]
[1743718939656,70.44613357,116.82,116.81,8.5609]
[1743718939848,51.79648471,116.82,116.81,34.53366102]
[1743718941982,0.42648471,116.81,116.8,8.5614]
[1743718942173,0.42648471,116.81,116.77,25.97276102]
[1743718942174,0.14216157,116.79,116.77,25.97276102]
[1743718942377,71.79648471,116.79,116.77,25.97276102]
[1743718942553,0.42648471,116.77,116.76,25.97276102]
[1743718942758,0.42648471,116.77,116.75,55.95046102]
[1743718943250,0.42648471,116.77,116.76,25.97276102]
[1743718943765,51.37,116.78,116.76,25.97276102]
[1743718945268,51.37,116.78,116.77,8.5638]
[1743718945866,51.79648471,116.78,116.77,8.5638]
[1743718946272,0.14216157,116.79,116.77,34.53656102]
[1743718946466,0.42648471,116.79,116.78,25.97276102]
[1743718947185,0.28432314,116.79,116.78,25.97276102]
[1743718947367,0.42648471,116.79,116.78,34.53586102]
[1743718947864,51.37,116.8,116.78,34.53586102]
[1743718948062,59.01,116.8,116.78,34.53586102]
[1743718950390,0.42648471,116.79,116.78,8.5631]
[1743718950569,71.79648471,116.79,116.77,8.5638]
[1743718960499,0.42648471,116.76,116.72,21.4182]
[1743718960706,0.42648471,116.74,116.73,8.5667]
[1743718961498,0.42648471,116.74,116.72,34.53986102]
[1743718961698,0.42648471,116.74,116.72,8.5671]
[1743718963980,0.42648471,116.74,116.72,34.53986102]
[1743718965303,51.79648471,116.73,116.72,34.53986102]
[1743718965519,51.79648471,116.73,116.71,21.4197]
[1743718965804,51.79648471,116.73,116.72,25.97276102]
[1743718966305,0.42648471,116.73,116.72,25.97276102]
[1743718968008,0.42648471,116.73,116.72,34.54026102]
[1743718969807,0.42648471,116.73,116.7,34.54166102]
[1743718969808,51.79648471,116.72,116.7,34.54166102]
[1743718970010,7.64,116.71,116.7,34.54166102]
[1743718972102,59.43648471,116.71,116.7,34.54166102]
[1743718975389,79.43648471,116.71,116.7,8.5689]
[1743718976290,0.42648471,116.7,116.69,8.5697]
[1743718976520,0.42648471,116.7,116.68,8.57]
[1743718977401,51.37,116.69,116.68,8.57]
[1743718977585,71.37,116.69,116.68,8.57]
[1743718978395,51.37,116.69,116.68,34.54276102]
[1743718978603,51.37,116.7,116.68,34.54276102]
[1743718978804,51.79648471,116.7,116.69,25.97276102]
[1743718979116,51.37,116.7,116.69,25.97276102]
[1743718980310,51.37,116.7,116.69,34.54246102]
[1743718983107,7.92432314,116.74,116.69,34.54246102]
[1743718983303,7.92432314,116.74,116.73,25.97276102]
[1743718983504,59.29432314,116.74,116.72,25.97276102]
[1743718983907,59.29432314,116.74,116.71,25.97276102]
[1743718984111,0.14216157,116.73,116.71,25.97276102]
[1743718984523,0.14216157,116.73,116.72,34.54026102]
[1743718985524,0.14216157,116.73,116.72,8.5675]
[1743718989100,20.0,116.75,116.72,34.54026102]
[1743718989305,20.14216157,116.77,116.74,25.97276102]
[1743718989616,0.14216157,116.78,116.76,25.97276102]
[1743718989809,0.42648471,116.78,116.77,16.6465951]
[1743718990833,0.42648471,116.78,116.77,25.2103951]
[1743718991129,0.42648471,116.78,116.77,8.5638]
[1743718991527,0.14216157,116.78,116.77,8.5638]
[1743718991823,0.14216157,116.79,116.77,25.2103951]
[1743718992027,7.64,116.8,116.78,16.6465951]
[1743718992327,0.14216157,116.8,116.79,16.6465951]
[1743718992526,0.42648471,116.8,116.79,16.6465951]
[1743718992717,0.28432314,116.78,116.77,25.2103951]
[1743718993832,0.28432314,116.78,116.77,34.57568592]
[1743718995835,0.28432314,116.78,116.77,8.5638]
[1743718996039,0.28432314,116.78,116.77,34.57568592]
[1743718997831,29.245,116.81,116.77,34.57568592]
[1743718998030,0.14216157,116.8,116.79,26.01188592]
[1743718998214,0.42648471,116.8,116.79,26.01188592]
[1743718998625,0.42648471,116.8,116.78,26.01188592]
[1743718999136,0.42648471,116.8,116.77,8.5638]
[1743718999337,0.42648471,116.8,116.79,8.5623]
[1743718999714,0.42648471,116.8,116.78,34.57458592]
[1743718999910,0.42648471,116.8,116.78,8.5627]
[1743719000323,0.42648471,116.8,116.78,34.57458592]
[1743719001329,0.14216157,116.82,116.79,26.01188592]
[1743719001532,7.64,116.84,116.81,26.01188592]
[1743719001735,7.78216157,116.84,116.83,26.01188592]
[1743719001936,0.42648471,116.84,116.83,26.01188592]
[1743719002329,20.0,116.85,116.83,26.01188592]
[1743719002524,0.42648471,116.84,116.81,26.0]
[1743719002732,0.42648471,116.84,116.83,26.01188592]
[1743719002935,0.42648471,116.84,116.83,34.57128592]
[1743719003341,0.42648471,116.82,116.8,34.57348592]
[1743719003531,8.06648471,116.82,116.8,8.5616]
[1743719004331,51.91648471,116.8,116.79,34.57388592]
[1743719007043,51.91648471,116.8,116.77,29.9725]
[1743719007245,51.91648471,116.8,116.78,26.01188592]
[1743719009246,51.91648471,116.8,116.79,8.5623]
[1743719012839,51.91648471,116.8,116.76,21.4105]
[1743719013152,0.42648471,116.78,116.75,34.57718592]
[1743719013532,59.55648471,116.78,116.75,34.57718592]
[1743719014150,59.55648471,116.78,116.76,26.01188592]
[1743719015328,59.55648471,116.78,116.75,34.57718592]
[1743719015629,59.55648471,116.78,116.76,16.65171362]
[1743719016046,0.42648471,116.76,116.75,25.21701362]
[1743719016224,0.42648471,116.76,116.74,25.21741362]
[1743719016427,0.42648471,116.76,116.74,8.5657]
[1743719016727,0.42648471,116.76,116.74,25.21741362]
[1743719017257,0.42648471,116.76,116.74,8.5657]
[1743719017446,0.42648471,116.76,116.74,25.21741362]
[1743719017447,51.49,116.75,116.74,25.21741362]
[1743719017946,51.77432314,116.75,116.74,25.21741362]
[1743719018153,51.91648471,116.75,116.74,25.21741362]
[1743719018750,0.42648471,116.75,116.74,25.21741362]
[1743719022266,0.42648471,116.75,116.74,8.5657]
[1743719022467,0.42648471,116.74,116.73,8.5665]
[1743719022961,0.42648471,116.72,116.71,25.21991362]
[1743719023932,0.42648471,116.72,116.7,25.22021362]
[1743719024170,0.42648471,116.72,116.7,8.5685]
[1743719024354,0.42648471,116.72,116.69,16.65171362]
[1743719024672,0.42648471,116.72,116.7,16.65171362]
[1743719025963,0.42648471,116.72,116.71,8.5682]
[1743719027552,0.42648471,116.72,116.68,21.4256]
[1743719027745,0.42648471,116.72,116.7,16.65171362]
[1743719027947,71.63216157,116.7,116.67,8.5711]
[1743719028159,0.42648471,116.68,116.67,25.22281362]
[1743719029766,0.42648471,116.68,116.64,66.60685448]
[1743719029767,20.42648471,116.68,116.65,8.5726]
[1743719030172,20.42648471,116.68,116.66,16.65171362]
[1743719030747,0.14216157,116.64,116.63,8.5741]
[1743719030948,0.14216157,116.62,116.6,16.65171362]
[1743719031154,0.14216157,116.62,116.59,25.22871362]
[1743719032052,0.28432314,116.61,116.59,25.22871362]
[1743719032249,20.28432314,116.6,116.59,8.577]
[1743719032463,20.28432314,116.6,116.59,25.22871362]
[1743719032464,20.42648471,116.6,116.59,25.22871362]
[1743719032767,20.42648471,116.6,116.59,8.577]
[1743719035168,0.28432314,116.59,116.58,34.67525337]
[1743719035469,0.42648471,116.59,116.58,8.5778]
[1743719036652,0.42648471,116.57,116.54,21.4512]
[1743719036866,0.42648471,116.57,116.55,34.67745337]
[1743719037057,20.0,116.56,116.55,8.58]
[1743719037363,20.28432314,116.56,116.55,34.67745337]
[1743719037571,20.42648471,116.56,116.55,34.67745337]
[1743719037750,0.42648471,116.56,116.55,34.67745337]
[1743719039969,0.42648471,116.56,116.55,8.58]
[1743719040473,20.42648471,116.56,116.55,8.58]
[1743719040666,20.42648471,116.56,116.53,26.09745337]
[1743719040870,20.0,116.54,116.53,26.09745337]
[1743719041071,27.64,116.54,116.53,26.09745337]
[1743719041673,27.64,116.54,116.53,34.67885337]
[1743719042055,27.64,116.54,116.53,8.5814]
[1743719042571,46.71613357,116.54,116.53,8.5814]
[1743719042953,28.06648471,116.54,116.53,8.5814]
[1743719043351,26.09745337,116.59,116.53,56.13255337]
[1743719043555,27.64,116.58,116.55,26.09745337]
[1743719044171,51.77432314,116.57,116.54,26.09745337]
[1743719044357,0.14216157,116.56,116.54,26.09745337]
[1743719044754,0.14216157,116.56,116.53,30.0351]
[1743719044958,0.28432314,116.55,116.53,8.5814]
[1743719045275,0.28432314,116.55,116.53,34.67885337]
[1743719046458,0.42648471,116.55,116.53,34.67885337]
[1743719047274,51.49,116.57,116.54,26.09745337]
[1743719047581,38.64964886,116.58,116.53,30.0351]
[1743719047582,0.14216157,116.58,116.56,26.09745337]
[1743719047871,0.42648471,116.58,116.57,8.5785]
[1743719048063,0.14216157,116.58,116.57,8.5785]
[1743719048476,0.14216157,116.58,116.57,34.67595337]
[1743719049056,59.13,116.6,116.57,56.12225337]
[1743719049356,20.0,116.62,116.59,26.09745337]
[1743719049555,59.13,116.63,116.61,26.09745337]
[1743719049862,51.49,116.63,116.62,34.67225337]
[1743719050075,51.77432314,116.63,116.62,34.67225337]
[1743719050376,51.49,116.63,116.62,34.67225337]
[1743719050780,51.77432314,116.63,116.62,34.67225337]
[1743719050979,70.28181043,116.63,116.62,26.09745337]
[1743719051281,70.423972,116.63,116.62,26.09745337]
[1743719051475,70.56613357,116.63,116.62,34.67225337]
[1743719052065,51.77432314,116.63,116.62,34.67225337]
[1743719052271,51.91648471,116.63,116.62,34.67225337]
[1743719052673,143.64,116.66,116.62,60.76970674]
[1743719052873,0.14216157,116.66,116.65,26.09745337]
[1743719053461,0.42648471,116.66,116.65,26.09745337]
[1743719053654,0.14216157,116.66,116.65,26.09745337]
[1743719054069,0.28432314,116.66,116.65,34.67005337]
[1743719054266,0.14216157,116.66,116.65,34.67005337]
[1743719054471,7.64,116.68,116.65,56.10165337]
[1743719054670,71.49,116.69,116.67,26.09745337]
[1743719054978,90.13964886,116.69,116.68,26.09745337]
[1743719055555,70.423972,116.68,116.67,26.09745337]
[1743719055761,90.423972,116.67,116.66,26.09745337]
[1743719055962,70.423972,116.66,116.65,26.09745337]
[1743719056567,70.56613357,116.66,116.65,26.09745337]
[1743719056866,51.49,116.68,116.65,34.67005337]
[1743719057072,51.49,116.68,116.67,26.09745337]
[1743719057073,51.63216157,116.68,116.67,26.09745337]
[1743719057261,51.91648471,116.68,116.67,26.09745337]
[1743719058090,51.91648471,116.68,116.67,34.66855337]
[1743719058469,51.91648471,116.68,116.67,26.09745337]
[1743719058871,70.56613357,116.68,116.67,26.09745337]
[1743719059881,90.423972,116.67,116.66,26.09745337]
[1743719061164,0.14216157,116.66,116.65,8.5722]
[1743719061365,0.14216157,116.66,116.65,34.66965337]
[1743719062866,0.14216157,116.66,116.6,6.2628]
[1743719062867,70.56613357,116.64,116.6,21.4391]
[1743719063088,70.56613357,116.64,116.63,26.09745337]
[1743719063388,90.423972,116.63,116.62,26.09745337]
[1743719063574,0.14216157,116.62,116.61,8.5755]
[1743719063770,0.14216157,116.62,116.61,34.67295337]
[1743719064290,0.42648471,116.64,116.61,34.67295337]
[1743719064464,0.42648471,116.64,116.63,26.09745337]